Cogmind - Beta 11.2 @@@ ROGUE MODE // 2023.02.13 @ 21:39:32 // Winter2022/Polymind Player: ArabianSandBoa Result: Destroyed by G-47 Trooper with Particle Gun Performance ------------- Evolutions (2) 1000 Regions Visited (7) 1400 Robots Destroyed (59) 295 Value Destroyed (1719) 1719 Prototype IDs (4) 80 Alien Tech Used (0) 0 Bonus (4808) 4808 TOTAL SCORE: 9172 Bonus ------- Polymind Skill 3950 High Alert Combat Kills 92 Follower Combat Kills 66 Entered Garrisons 200 Used RIF Installer 500 Cogmind --------- Core Integrity 0/550 Matter 0/0 Energy 9/100 System Corruption 0% Temperature Cool (9) Movement Core (50) Location -8/Materials Parts ------- > --- POWER (1) -------- (None) > --- PROPULSION (2) --- (None) > --- UTILITY (1) ------ (None) > --- WEAPON (1) ------- (None) > --- INVENTORY (0) ---- (None) Peak State ------------ > --- POWER ------------ Heavy Deuterium Engine > --- PROPULSION ------- Combat Antigrav System > --- UTILITY ---------- Advanced Launcher Guidance Computer Improved Target Analyzer Experimental Core Analyzer Improved Armor Integrity Analyzer EX Chip 1 EX Chip 1 EX Chip 1 EX Chip 1 EX Chip 1 EX Chip 1 EX Chip 1 EX Chip 1 EX Chip 1 EX Chip 1 EX Chip 2 EX Chip 2 EX Chip 2 EX Chip 2 EX Chip 2 EX Chip 2 EX Chip 2 EX Chip 2 > --- WEAPON ----------- AWS/EX-DEC > --- INVENTORY -------- Deploy-a-Sentry [Rating: 99] Favorites ----------- Power Heavy Deuterium Engine Engine Heavy Deuterium Engine Power Core Light Nuclear Core Propulsion Combat Antigrav System Treads Light Treads Leg Aluminum Leg Wheel Compact Wheel Hover Unit Combat Antigrav System Flight Unit Flight Unit Utility EX Chip 1 Device Heat Sink Storage Small Storage Unit Processor Advanced Launcher Guidance Computer Hackware EX Chip 1 Protection Light Armor Plating Weapon AWS/EX-DEC Energy Gun AWS/EX-DEC Ballistic Gun Light Assault Rifle Build | -11 -10 -10 -10 -9 -8 -8 -8 ------- Run | Scr Mat Min Exi Min Mat Gar Mat Slots Evolved . | . . . . . . . . Power . | . . . . . . . . Propulsion . | . . . . . . . . Utility . | . . . . . . . . Weapon . | . . . . . . . . Parts Attached . | . . . . . . . . Power . | . . . . . . . . Engine . | . . . . . . . . Core . | . . . . . . . . Reactor . | . . . . . . . . Propulsion . | . . . . . . . . Treads . | . . . . . . . . Leg . | . . . . . . . . Wheel . | . . . . . . . . Hover . | . . . . . . . . Flight . | . . . . . . . . Utility . | . . . . . . . . Device . | . . . . . . . . Storage . | . . . . . . . . Processor . | . . . . . . . . Hackware . | . . . . . . . . Protection . | . . . . . . . . Artifact . | . . . . . . . . Weapon . | . . . . . . . . Energy Gun . | . . . . . . . . Energy Cannon . | . . . . . . . . Ballistic Gun . | . . . . . . . . Ballistic Cannon . | . . . . . . . . Launcher . | . . . . . . . . Special Weapon . | . . . . . . . . Impact Weapon . | . . . . . . . . Slashing Weapon . | . . . . . . . . Piercing Weapon . | . . . . . . . . Special Melee Weapon . | . . . . . . . . Unidentified Prototypes . | . . . . . . . . Parts Lost 16 | . 2 1 . 1 3 5 4 Power . | . . . . . . . . Propulsion 4 | . 1 1 . . . 1 1 Utility 9 | . . . . 1 2 4 2 Weapon 3 | . 1 . . . 1 . 1 Highest Loss Streak 5 | . 2 1 . 1 1 5 4 To Critical Strikes . | . . . . . . . . Average Slot Usage (%) 88 | . 98 76 98 94 88 82 97 Engine 8 | . 20 14 1 3 2 10 13 Core 3 | . . 6 12 . . . 3 Leg 10 | . 9 23 24 . . . 7 Wheel 3 | . 30 . . . . . . Hover 1 | . . . 1 3 3 1 . Flight 3 | . . 6 . . . 20 13 Device 8 | . 20 17 12 . . . 17 Storage 1 | . 15 . . . . . . Processor 7 | . . . 5 15 15 8 . Hackware 32 | . . . 26 67 61 30 . Energy Gun 5 | . 4 6 13 3 2 . 10 Ballistic Gun 1 | . . 3 . . . 10 13 Naked Turns 3 | . . 3 . . . . . Heaviest Build 21 | 9 9 9 21 21 21 4 18 Greatest Support 40 | 32 32 20 21 21 21 21 40 Greatest Overweight (x) 1 | . . 1 . . . . . Average Overweight (x) . | . . . . . . . . Largest Inventory Capacity 4 | 4 4 1 1 1 1 1 1 Average Capacity 1 | 1 3 . 1 1 1 . . Most Carried 4 | . 4 1 1 1 1 1 . Average Carried . | . . . 1 1 1 . . Final Capacity 4 | 4 1 1 1 1 1 . . Final Carried 1 | . . 1 1 1 1 . . Class Distribution -------------------- 50% | Tinkerer 31% | Grunt 7% | Recycler 7% | Swarmer Dominant Class ---------------- Recycler | -10/Materials Grunt | -10/Mines Grunt | -10/Exiles Tinkerer | -9/Mines Tinkerer | -8/Materials Tinkerer | -8/Garrison Sentry | -8/Materials Resources | -11 -10 -10 -10 -9 -8 -8 -8 ----------- Run | Scr Mat Min Exi Min Mat Gar Mat Matter Collected 61 | . . 19 . . . 15 27 Remotely . | . . . . . . . . Salvage Created 1666 | . 21 107 65 180 929 86 278 Parts 108 | . 3 17 1 7 60 10 10 Haulers Intercepted 1 | . . . . . 1 . . Recyclers Shooed 1 | . 1 . . . . . . Parts Field Recycled . | . . . . . . . . Retrieved Matter . | . . . . . . . . Parts Self-Destructed . | . . . . . . . . Prevented . | . . . . . . . . Kills | -11 -10 -10 -10 -9 -8 -8 -8 ------- Run | Scr Mat Min Exi Min Mat Gar Mat Combat Hostiles Destroyed 55 | . 3 11 1 7 19 6 8 Melee 1 | . . . . . . 1 . Guns 49 | . 3 11 1 7 14 5 8 AOE 2 | . . . . . 2 . . Classes Destroyed 13 | . 2 . . 1 10 . . Worker 2 | . . . . . 2 . . Tunneler 1 | . . . . . 1 . . Hauler 1 | . . . . . 1 . . Mechanic 1 | . . . . . 1 . . Operator 1 | . . . . . 1 . . Watcher 2 | . . . . . 2 . . Swarmer 21 | . 2 9 . . . 6 4 Cutter 2 | . . . . . 2 . . Grunt 18 | . 1 2 1 3 9 . 2 Brawler 1 | . . . . . 1 . . Sentry 5 | . . . . . 3 . 2 Hunter 4 | . . . . . 4 . . Assembled 4 | . . . . 4 . . . Best Kill Streak 14 | . 3 5 1 4 14 6 7 Combat Bots Only 7 | . 3 5 1 4 6 6 7 Max Kills in Single Turn 2 | . 1 1 1 1 2 1 1 Gunslinging . | . . . . . . . . Exploded 1 | . . . . . 1 . . Melee 1 | . . . . . . 1 . Uniques/NPCs Destroyed . | . . . . . . . . Combat | -11 -10 -10 -10 -9 -8 -8 -8 -------- Run | Scr Mat Min Exi Min Mat Gar Mat Damage Taken 2654 | . 445 249 16 45 699 417 783 Core 787 | . 110 100 16 . 215 253 93 Absorbed by Shields 5 | . . . . . . 5 . Core Remaining (%) 54 | 100 . . . 9 . . . Volleys Fired 83 | . 17 32 . . . 13 21 Largest 2 | . 1 1 . . . 1 2 Hottest 79 | . 40 65 . . . 20 79 Shots Fired 174 | . 17 32 2 15 61 13 34 Gun 174 | . 17 32 2 15 61 13 34 Cannon . | . . . . . . . . Launcher . | . . . . . . . . Special . | . . . . . . . . Kinetic 45 | . . 18 . . . 13 14 Thermal 51 | . 17 14 . . . . 20 Explosive . | . . . . . . . . Electromagnetic 78 | . . . 2 15 61 . . Robot Hit Streak 20 | . 3 5 6 20 13 5 11 Robot Miss Streak 4 | . 2 4 . 2 3 1 3 Penetration Max . | . . . . . . . . Secondary Targets 3 | . . . . . . . 3 Max Gunslinging Chain 1 | . . . . . . . 1 Autonomous 78 | . . . 2 15 61 . . Shots Hit Robots 138 | . 11 19 2 14 57 9 26 Core Hits 98 | . 5 12 2 12 43 9 15 Critical Kills . | . . . . . . . . Critical Parts Destroyed . | . . . . . . . . Critical Strikes 16 | . . . . 2 11 . 3 Burn 3 | . . . . . . . 3 Corrupt 13 | . . . . 2 11 . . Melee Attacks . | . . . . . . . . Impact . | . . . . . . . . Slashing . | . . . . . . . . Piercing . | . . . . . . . . Sneak Attacks . | . . . . . . . . Combat Hostiles . | . . . . . . . . Follow-up Attacks . | . . . . . . . . Damage Inflicted 3699 | . 154 213 77 455 2264 98 438 Guns 3116 | . 154 213 77 455 1701 78 438 Cannons . | . . . . . . . . Explosions 560 | . . . . . 560 . . Melee . | . . . . . . . . Ramming 23 | . . . . . 3 20 . Kinetic 333 | . . 96 . . . 78 159 Thermal 1110 | . 154 117 . . 560 . 279 Explosive . | . . . . . . . . Electromagnetic 2233 | . . . 77 455 1701 . . Impact . | . . . . . . . . Slashing . | . . . . . . . . Piercing . | . . . . . . . . Highest Corruption 1 | . 1 1 1 1 . . . Average Corruption 1 | . 1 1 1 1 . . . Corruption Purged . | . . . . . . . . Corruption Blocked . | . . . . . . . . Effects 7 | . . 4 1 2 . . . Message Errors 4 | . . 3 . 1 . . . Heat Flow Errors 2 | . . 1 1 . . . . Data Loss (major) 1 | . . . . 1 . . . Overload Shots . | . . . . . . . . Overflow Damage 12 | . . . . . 12 . . Projectiles . | . . . . . . . . Explosions 12 | . . . . . 12 . . Melee . | . . . . . . . . Knockbacks . | . . . . . . . . Impact . | . . . . . . . . Kinetic . | . . . . . . . . Secondary . | . . . . . . . . Self-Inflicted Damage 43 | . . . . . 34 9 . Shots 2 | . . . . . 2 . . Rammed 4 | . . . . . 2 2 . Targets Rammed 4 | . . . . . 2 2 . Kicked . | . . . . . . . . Crushed . | . . . . . . . . Highest Temperature 230 | . 48 185 152 5 4 19 230 Average Temperature 44 | . 23 22 76 5 2 9 67 Received Heat Transfer 789 | . 198 18 9 9 90 87 378 Siege Activations . | . . . . . . . . Robots Corrupted 4 | . . . . . 4 . . Combat Hostiles 3 | . . . . . 3 . . Parts Fried 14 | . . 1 . 3 10 . . Impact Corruptions . | . . . . . . . . Robots Melted . | . . . . . . . . Combat Hostiles . | . . . . . . . . Parts Melted 1 | . 1 . . . . . . Heat Transferred 1822 | . 325 259 . . 350 . 888 Parts Sabotaged . | . . . . . . . . Parts Stolen . | . . . . . . . . Parts Stripped . | . . . . . . . . Power Chain Reactions 1 | . . . . . 1 . . Missiles Intercepted . | . . . . . . . . Alert | -11 -10 -10 -10 -9 -8 -8 -8 ------- Run | Scr Mat Min Exi Min Mat Gar Mat Peak Influence 569 | . 243 321 . 70 569 337 478 Initial 242 | . . 86 . . 23 242 163 Average 178 | . 87 146 . 63 288 256 332 Maximum Alert Level 2 | . 1 1 . . 2 1 2 Low Security (%) 60 | 100 83 67 . 100 33 9 24 Level 1 28 | . 16 32 . . 36 90 39 Level 2 10 | . . . . . 30 . 35 Level 3 . | . . . . . . . . Level 4 . | . . . . . . . . Level 5 . | . . . . . . . . High Security . | . . . . . . . . Max Security . | . . . . . . . . Squads Dispatched 14 | . 3 . . . 10 . 1 Investigation 9 | . 3 . . . 5 . 1 Extermination . | . . . . . . . . Reinforcement 3 | . . . . . 3 . . Assault . | . . . . . . . . Garrison 2 | . . . . . 2 . . Intercept . | . . . . . . . . Searches Triggered . | . . . . . . . . Construction Impeded . | . . . . . . . . Haulers Reinforced . | . . . . . . . . Active Scanning Responses . | . . . . . . . . Cargo Convoy Interrupts . | . . . . . . . . Stealth | -11 -10 -10 -10 -9 -8 -8 -8 --------- Run | Scr Mat Min Exi Min Mat Gar Mat Distress Signals 3 | . . . . . 3 . . Communications Jammed . | . . . . . . . . Distress Signals . | . . . . . . . . Times Spotted 111 | . 13 23 1 7 33 22 12 Peak Tracking Total 12 | . 8 4 1 4 6 12 7 Tactical Retreats 11 | . 1 5 . . 5 . . Traps | -11 -10 -10 -10 -9 -8 -8 -8 ------- Run | Scr Mat Min Exi Min Mat Gar Mat Traps Triggered 3 | . . . . . 1 2 . Indirectly . | . . . . . . . . Trap Hack Attempts . | . . . . . . . . Triggered . | . . . . . . . . Disarmed . | . . . . . . . . Reprogrammed 8 | . 4 . . . 4 . . Reused 3 | . 1 . . . 2 . . Traps Extracted . | . . . . . . . . Installed . | . . . . . . . . Triggered 6 | . 1 3 . . 2 . . Most Traps Carried 1 | . . 1 1 . . . . Machines | -11 -10 -10 -10 -9 -8 -8 -8 ---------- Run | Scr Mat Min Exi Min Mat Gar Mat Machines Disabled 6 | . . . . . 5 . 1 Max in Single Turn 2 | . . . . . 2 . 1 Machines Sabotaged 1 | . . . . . 1 . . Garrisons Compromised . | . . . . . . . . Overloaded Fab Kills . | . . . . . . . . Hacking | -11 -10 -10 -10 -9 -8 -8 -8 --------- Run | Scr Mat Min Exi Min Mat Gar Mat Machines Accessed 13 | . 4 . . . 8 . 1 Terminals 8 | . 3 . . . 5 . . Fabricators . | . . . . . . . . Repair Stations . | . . . . . . . . Recycling Units 3 | . 1 . . . 1 . 1 Scanalyzers 1 | . . . . . 1 . . Garrison Access 1 | . . . . . 1 . . Total Hacks 69 | . 14 . . . 54 . 1 Successful 53 | . 6 . . . 46 . 1 Failed 14 | . 7 . . . 7 . . Catastrophic 1 | . 1 . . . . . . Database Lockouts 2 | . 1 . . . 1 . . Manual 74 | . 14 . . . 59 . 1 Terminals 62 | . 13 . . . 49 . . Fabricators . | . . . . . . . . Repair Stations . | . . . . . . . . Recycling Units 3 | . 1 . . . 1 . 1 Scanalyzers 1 | . . . . . 1 . . Garrison Access 3 | . . . . . 3 . . Terminal Hacks 32 | . 2 . . . 30 . . Record 1 | . . . . . 1 . . Robot Analysis 17 | . 1 . . . 16 . . Level Access Points 1 | . . . . . 1 . . Branch Access Points 2 | . . . . . 2 . . Emergency Access Points 1 | . . . . . 1 . . Alert Level 1 | . . . . . 1 . . Unreport Threat 4 | . . . . . 4 . . Reprogram Traps 4 | . 1 . . . 3 . . Zone Layout 1 | . . . . . 1 . . Fabricator Hacks . | . . . . . . . . Repair Station Hacks . | . . . . . . . . Recycling Unit Hacks . | . . . . . . . . Scanalyzer . | . . . . . . . . Garrison Access Hacks 2 | . . . . . 2 . . Unlock Access 1 | . . . . . 1 . . Coupler Status 1 | . . . . . 1 . . Unauthorized Hacks 19 | . 4 . . . 14 . 1 Terminals 14 | . 3 . . . 11 . . Track 1 | . . . . . 1 . . Botnet 6 | . 2 . . . 4 . . Detonate 4 | . 1 . . . 3 . . Disrupt 1 | . . . . . 1 . . Sabotage 1 | . . . . . 1 . . Search 1 | . . . . . 1 . . Fabricators . | . . . . . . . . Repair Stations . | . . . . . . . . Recycling Units 3 | . 1 . . . 1 . 1 Tunnel 3 | . 1 . . . 1 . 1 Scanalyzers 1 | . . . . . 1 . . Extract 1 | . . . . . 1 . . Garrison Access 1 | . . . . . 1 . . Reprogram 1 | . . . . . 1 . . Data Cores Recovered . | . . . . . . . . Used . | . . . . . . . . Hacking Detections 7 | . 3 . . . 4 . . Full Trace Events 3 | . 3 . . . . . . Feedback Events 1 | . 1 . . . . . . Corruption 1 | . 1 . . . . . . Feedback Blocked . | . . . . . . . . Robot Schematics Acquired . | . . . . . . . . Robots Built . | . . . . . . . . Authchips . | . . . . . . . . Time . | . . . . . . . . Total Robot Build Rating . | . . . . . . . . Part Schematics Acquired 7 | . . . . . 7 . . Parts Built . | . . . . . . . . Authchips . | . . . . . . . . Time . | . . . . . . . . Total Part Build Rating . | . . . . . . . . Parts Repaired . | . . . . . . . . Time . | . . . . . . . . Parts Recycled . | . . . . . . . . Recycled Matter . | . . . . . . . . Retrieved Matter . | . . . . . . . . Retrieved Components . | . . . . . . . . Parts Scanalyzed . | . . . . . . . . Part Schematics Acquired . | . . . . . . . . Parts Damaged . | . . . . . . . . Bothacking | -11 -10 -10 -10 -9 -8 -8 -8 ------------ Run | Scr Mat Min Exi Min Mat Gar Mat Used RIF Installer 1 | . . . . . . 1 . Robots Hacked 7 | . 1 2 . . . 1 3 Non-combat . | . . . . . . . . Combat 7 | . 1 2 . . . 1 3 Robot Hacks Applied 10 | . 1 2 . . . 1 6 find_shortcuts 7 | . 1 2 . . . 1 3 find_garrison 3 | . . . . . . . 3 Relay Couplers Released . | . . . . . . . . Fabnet Peak Effective % . | . . . . . . . . Robots Rewired . | . . . . . . . . Allies Hacked . | . . . . . . . . Hacks Repelled . | . . . . . . . . Allies | -11 -10 -10 -10 -9 -8 -8 -8 -------- Run | Scr Mat Min Exi Min Mat Gar Mat Total Allies 1 | . . . . . 1 . . Largest Group 1 | . . . . . 1 . . Highest-Rated Group 21 | . . . . . 21 . . Highest-Rated Ally 21 | . . . . . 21 . . Total Orders . | . . . . . . . . Ally Attacks 15 | . . . . . 15 . . Total Damage 341 | . . . . . 341 . . Kills 2 | . . . . . 2 . . Allies Corrupted . | . . . . . . . . Allies Melted . | . . . . . . . . Intel | -11 -10 -10 -10 -9 -8 -8 -8 ------- Run | Scr Mat Min Exi Min Mat Gar Mat Robot Analysis Total 20 | 1 2 1 . . 15 . 1 Derelict Logs Recovered 2 | . . 1 . 1 . . . Drone Launches . | . . . . . . . . Drone Recoveries . | . . . . . . . . Exploration | -11 -10 -10 -10 -9 -8 -8 -8 ------------- Run | Scr Mat Min Exi Min Mat Gar Mat Turns Passed 2319 | 20 248 557 292 396 576 127 103 Spaces Moved 2331 | 23 200 453 290 451 666 163 85 Core 53 | 17 . 4 1 . . 30 1 Treads 7 | . . . . . . . 7 Legs 526 | . 28 351 147 . . . . Wheels 178 | 6 172 . . . . . . Hover 1321 | . . . 142 451 666 62 . Flight 246 | . . 98 . . . 71 77 Fastest Speed 37 | 50 100 37 50 80 80 37 37 Average Speed 85 | 63 102 101 100 80 80 55 47 Slowest Speed 160 | 100 120 120 120 80 80 80 160 Overloaded Moves . | . . . . . . . . Propulsion Burnouts . | . . . . . . . . Robots Hopped 6 | . . . . . . 6 . Cave-ins Triggered . | . . . . . . . . Exploration Rate (%) 45 | 4 32 87 61 69 52 47 13 Regions Visited 7 Branch Regions 3 Pre-discovered Areas 3 | . 1 . . . 1 . 1 Known Exits Taken 1 | . . . . . 1 . . Unknown Exits Taken 5 | 1 1 1 1 1 . . . Scrap Searched 2 | . . 1 . 1 . . . Spaces Dug . | . . . . . . . . Terrain Destroyed 73 | . . . . . 73 . . Melee . | . . . . . . . . Projectile . | . . . . . . . . AOE 73 | . . . . . 73 . . Terrain Rammed . | . . . . . . . . Walls Destroyed . | . . . . . . . . Machines Disabled . | . . . . . . . . Actions | -11 -10 -10 -10 -9 -8 -8 -8 --------- Run | Scr Mat Min Exi Min Mat Gar Mat Total 2552 | 28 225 520 291 485 708 181 114 Wait 133 | 6 1 35 2 35 41 5 8 Move 2311 | 22 199 452 289 450 665 149 85 Hop 6 | . . . . . . 6 . Pick Up 5 | . 4 1 . . . . . Fast Attach . | . . . . . . . . Attach . | . . . . . . . . Detach . | . . . . . . . . Swap . | . . . . . . . . Drop . | . . . . . . . . Fire 83 | . 17 32 . . . 13 21 Melee . | . . . . . . . . Ram 4 | . . . . . 2 2 . Kick . | . . . . . . . . Crush . | . . . . . . . . Escape Stasis 6 | . . . . . . 6 . Rewire . | . . . . . . . . Trap . | . . . . . . . . Miscellaneous 4 | . 4 . . . . . . Route ------- -11/Scrapyard -10/Materials -10/Mines (discovered 3 exits: [*Mat x2] / [*Exi]) -10/Exiles -9/Mines (discovered 2 exits: *Mat x2) -8/Materials (discovered 4 exits: *Fac x3 / Gar) -8/Garrison -8/Materials History --------- Turn | Location | Event 3 | -11/Scrapyard | Discovered new exit (range 15) 21 | -11/Scrapyard | Entered Materials 45 | -10/Materials | Central database locked down 103 | -10/Materials | Discovered new exit (range 14) 269 | -10/Materials | Entered Mines 373 | -10/Mines | Discovered new exit (range 6) 488 | -10/Mines | Learned 4 Materials zone layouts 573 | -10/Mines | Discovered new exit (range 5) 609 | -10/Mines | Core integrity fell below 50% 694 | -10/Mines | Core integrity fell below 20% 793 | -10/Mines | Found a hidden stash of uninstalled traps 821 | -10/Mines | Deemed a non-threat by the Exiles lab entrance 821 | -10/Mines | Discovered new exit (range 5) 826 | -10/Mines | Entered Exiles 855 | -10/Exiles | Met 8R-AWN 876 | -10/Exiles | Met EX-HEX 920 | -10/Exiles | Met EX-DEC 949 | -10/Exiles | Met EX-BIN 1003 | -10/Exiles | Took control of EX-DEC (ally) 1029 | -10/Exiles | Visited The Gauntlet 1108 | -10/Exiles | Discovered new exit (range 15) 1118 | -10/Exiles | Left Exiles lab with Deploy-a-Sentry 1118 | -10/Exiles | Entered Mines 1178 | -9/Mines | Learned Materials interactive machine intel 1272 | -9/Mines | Discovered new exit (range 6) 1372 | -9/Mines | Discovered new exit (range 5) 1385 | -9/Mines | Assembled infested the area 1390 | -9/Mines | Assisted by a Guerilla fighting off Assembled 1514 | -9/Mines | Entered Materials 1516 | -8/Materials | Loaded intel: 19 interactive machine locations 1852 | -8/Materials | Discovered new exit (range 4) 1898 | -8/Materials | Central database locked down 1898 | -8/Materials | Identified exit to Factory 1907 | -8/Materials | Identified exit to Garrison 1987 | -8/Materials | Garrison activated, responded to threat 2090 | -8/Materials | Entered Garrison 2095 | -8/Garrison | Installed Relay Interface Framework 2136 | -8/Garrison | Core integrity fell below 50% 2138 | -8/Garrison | Triggered checkpoint 2160 | -8/Garrison | Triggered checkpoint 2180 | -8/Garrison | Lost 5 parts (1n4u) 2209 | -8/Garrison | Discovered new exit (range 15) 2211 | -8/Garrison | Core integrity fell below 20% 2217 | -8/Garrison | Entered Materials 2320 | -8/Materials | Destroyed by G-47 Trooper with Particle Gun Last Messages --------------- 02301_ R-06 Scavenger collects Flight Unit. 02301_ Heat Sink destroyed. 02301_ K-01 Serf collects debris. 02303_ Hvy. Assault Rifle destroyed. 02304_ R-06 Scavenger collects Flight Unit. 02304_ K-01 Serf collects debris. 02304_ Y-45 Defender destroyed. 02306_ Acquired 21 matter. 02307_ Lgt. Treads destroyed. 02307_ K-01 Serf collects debris. 02308_ Released control of Y-45 Defender. 02308_ Took control of G-47 Trooper. 02311_ K-01 Serf collects debris. 02312_ G-47 Trooper suffers critical hit (Burn). 02314_ G-47 Trooper heat damages Lgt. Nuclear Core, Imp. Heat Sink, Aluminum Leg, Aluminum Leg. 02314_ G-47 Trooper destroyed. 02314_ K-01 Serf collects debris. 02318_ Y-45 Defender destroyed. 02320_ Released control of G-47 Trooper. Map ----- +----------------------------------------------------+ | | | | | | | | | | | | | | | | | | | | | | | | | | | | | | | | | | | | | | | | | | | | | | | ???????????????????????###########???????????????? | | ???????????????????????# % #???????????????? | | ??????????????????????##^@[%* "" #???????????????? | | ??????????????????????#+=gk% T" #???????????????? | | ??????????????????????##%"" "" #???????????????? | | ??????????????????????##%""" #???????????????? | | ??????????????????????#%=""" ^ #???????????????? | | ???????????????????# # ^ =#???????????????? | | ???????????????????# # % #???????????????? | | ??????????????######## ###+#####+####+#??????????? | | ??????? #????????? | | ??????? #????????? | | ??????????############### """ #####/#??????????? | | ????????????????????????# """ #????????????????? | | ?????????????????######## """ #????????????????? | | ?????????????????# + #????????????????? | | ?????????????""" # !! # #????????????????? | | ?????????????""" + !! # ### #????????????????? | | ?????????????""" # # #?? #????????????????? | | ?????????????????# ! + #??? #????????????????? | | ?????????????????#/ # #???? ????????????????? | | ?????????????????###/#### ##???? ???????????????? | | ?????????????####### ### #?????#??????????????? | | ?????????????+ #????????????????????? | | ?????????????# #????????????????????? | | ?????????????# #### #### #????????????????????? | | ??????????????????# #???#+###????????????????????? | +----------------------------------------------------+ Best States ------------- Heat Dissipation 40 Energy Generation 23 Energy Capacity 235 Matter Stores 100 Matter Capacity 100 Sight Range 16 Terrain Scan Density 10 Armor Coverage 150 Resistance: EX 50 Resistance: EM 90 Resistance: I 25 Evasion (%) 62 Launcher Accuracy 40 Target Analysis 6 Core Analysis 8 Armor Integrity Analysis 40 Recoil Reduction 2 Offensive Hacking 70 Defensive Hacking 56 Item Schematics ----------------- Machine Analyzer | -8/Materials | Extracted Terrain Scan Processor | -8/Materials | Extracted Imp. VTOL Module | -8/Materials | Extracted Adv. Visual Processing Unit | -8/Materials | Extracted Shield Generator | -8/Materials | Extracted Imp. Datajack | -8/Materials | Extracted Imp. Terrain Scan Processor | -8/Materials | Extracted Robot Schematics ------------------ None Fabricated ------------ Nothing Alien Tech Used ----------------- None Achievements -------------- None Challenges ------------ None Polymind | -11 -10 -10 -10 -9 -8 -8 -8 ---------- Run | Scr Mat Min Exi Min Mat Gar Mat Hosts 9 | 1 1 2 1 . . 1 3 Combat Hostiles 7 | . 1 2 . . . 1 3 Allies 1 | . . . 1 . . . . Unique Host Classes 5 | 1 1 1 1 . . . 1 Average Host Suspicion 76 | . 58 76 39 77 99 86 79 Unsuspicious Activity 112 | 2 20 . . 90 . . . Returns to Shadow 1 | . . . . 1 . . . Fuzzy Dispatches . | . . . . . . . . Protomatter Created 366 | . 16 39 . 80 194 10 27 Used 154 | 5 15 36 33 . . 6 59 Decayed 27 | . . . . . 27 . . Highest Spend 33 | 5 15 30 33 . . 6 30 Top 5 Hosts by Kills: EX-DEC (-10/Exiles: 28) G-47 Trooper (-10/Mines: 6) Y-45 Defender (-8/Materials: 6) S-10 Pest (-10/Mines: 5) S-10 Pest (-8/Garrison: 5) Game ------ Seed AbsorptionShockTerminator Manual? 0 Play Time 00:33:02 Cumulative 311.4 hours Start 2023.02.13 @ 21:00:47 End 2023.02.13 @ 21:39:32 Sessions 1 Manual Loads 0 Difficulty Rogue Special Mode Winter2022/Polymind Game No. 378 Rogue 378 Adventurer 0 Explorer 0 Win Type - Total 0 Types 0/0/0/0/0/0/0/0/0 Lore% 46 Gallery% 72 Achievement% 59 Wizard Run 0 Options --------- ASCII 0 Keyboard 0 Movement Mouse Keybinds 0 Fullscreen 2 Font 24/Smallcaps Map View 76x50 Tactical HUD 1 Map Filters NONE Filters NONE Steam 1 RUN: 5d2d506c-0551-47dd-84e4-9c709f78c4ad